[Event "Austria Championship Blitz 2024"]
[Site "Innsbruck"]
[Date "2024.06.01"]
[Round "1.1"]
[White "Blohberger, Felix"]
[Black "Wimmer, Michael"]
[Result "1-0"]
[ECO "A30"]
[WhiteElo "2506"]
[BlackElo "2142"]
[Annotator "RC"]
[PlyCount "73"]
[EventDate "2024.06.01"]
[EventType "swiss"]
[EventCountry "AUT"]
[SourceTitle "playchess.com"]
[Source "ChessBase"]
[SourceQuality "1"]
[TimeControl "180+2"]

1. Nf3 {[%emt 0:00:02]} Nf6 {[%emt 0:00:02]} 2. g3 {[%emt 0:00:01]} b6 {[%emt 0:00:04]} 3. Bg2 {[%emt 0:00:01]} Bb7 {[%emt 0:00:01]} 4. O-O {[%emt 0:00:02]} e6 {[%emt 0:00:02]} 5. c4 {[%emt 0:00:01]} Be7 {[%emt 0:00:02]} 6. Nc3 {[%emt 0:00:01]} O-O {[%emt 0:00:02]} 7. Re1 {[%emt 0:00:01]} d5 {[%emt 0:00:06]} 8. cxd5 {[%emt 0:00:01]} Nxd5 {[%emt 0:00:03]} 9. e4 {[%emt 0:00:06]} Nxc3 {[%emt 0:00:10]} 10. bxc3 {[%emt 0:00:01]} c5 {[%emt 0:00:07]} 11. d4 {[%emt 0:00:01]} cxd4 {[%emt 0:00:18]} 12. cxd4 {[%emt 0:00:01]} Nc6 {[%emt 0:00:02]} 13. Bb2 {[%emt 0:00:04]} Rc8 {[%emt 0:00:13]} 14. Rc1 {[%emt 0:00:34]} Na5 {[%emt 0:00:29]} 15. Ne5 {[%emt 0:00:10]} Bf6 {[%emt 0:00:17]} 16. Rxc8 {[%emt 0:00:28]} Qxc8 {[%emt 0:00:07]} 17. Ng4 {[%emt 0:00:10]} Be7 {[%emt 0:00:20]} 18. d5 {[%emt 0:00:03]} exd5 {[%emt 0:00:28]} 19. exd5 {[%emt 0:00:04]} Bc5 {[%emt 0:00:05]} 20. Bh3 {[%emt 0:00:36]} Qd8 {[%emt 0:00:14]} 21. Bg2 {[%emt 0:00:45]} Qc8 {[%emt 0:00:01]} 22. Re5 {[%emt 0:00:25]} Nc4 {[%emt 0:00:12]} 23. Ba1 {[%emt 0:00:06]} Nxe5 {[%emt 0:00:06]} 24. Bxe5 {[%emt 0:00:01]} Qf5 {[%emt 0:00:01]} 25. Bf4 {[%emt 0:00:03]} Rd8 {[%emt 0:00:05]} 26. Ne3 {[%emt 0:00:01]} Bxe3 {[%emt 0:00:07]} 27. fxe3 {[%emt 0:00:00]} Qd7 {[%emt 0:00:09]} 28. e4 {[%emt 0:00:01]} Qb5 {[%emt 0:00:02]} 29. h4 {[%emt 0:00:04]} h6 {[%emt 0:00:01]} 30. Qd2 {[%emt 0:00:03]} Qc5+ {[%emt 0:00:03]} 31. Kh2 {[%emt 0:00:01]} Qe7 {[%emt 0:00:01]} 32. d6 {[%emt 0:00:01]} Qf6 {[%emt 0:00:02]} 33. e5 {[%emt 0:00:01]} Qf5 {[%emt 0:00:03]} 34. Bxb7 {[%emt 0:00:02]} Qb1 {[%emt 0:00:02]} 35. Ba6 {[%emt 0:00:04]} Qa1 {[%emt 0:00:02]} 36. d7 {[%emt 0:00:02]} Qb1 {[%emt 0:00:05]} 37. Bc8 {[%emt 0:00:08]} 1-0

[Event "Austria Championship Blitz 2024"]
[Site "Innsbruck"]
[Date "2024.06.01"]
[Round "1.2"]
[White "Kosc, Renata"]
[Black "Shengelia, David"]
[Result "0-1"]
[ECO "B33"]
[WhiteElo "1983"]
[BlackElo "2465"]
[Annotator "TA"]
[PlyCount "88"]
[EventDate "2024.06.01"]
[EventType "swiss"]
[EventCountry "AUT"]
[SourceTitle "playchess.com"]
[Source "ChessBase"]
[SourceQuality "1"]
[TimeControl "180+2"]

{[%evp 12,88,24,-39,-33,-27,-26,-25,-22,-22,-14,-23,-14,-22,-5,-24,12,-24,2,0,0,-8,12,0,13,-7,0,-5,-7,-70,-74,-71,-68,-241,-236,-325,-341,-579,-358,-347,-346,-936,-934,-1118,-997,-1011,-885,-879,-521,-527,-530,-517,-391,-545,-551,-552,-537,-867,-844,-1076,-1046,-1068,-921,-1264,-1264,-1238,-1238,-1213,-1206,-1195,-1195,-1173,-1173,-1170,-1144,-1141,-1032,-793,-461]} 1. e4 {[%emt 0:00:01]} c5 {[%emt 0:00:01]} 2. Nf3 {[%emt 0:00:01]} Nc6 {[%emt 0:00:01]} 3. d4 {[%emt 0:00:00]} cxd4 4. Nxd4 Nf6 {[%emt 0:00:02]} 5. Nc3 {[%emt 0:00:01]} d6 {[%emt 0:00:01]} 6. f3 {[%emt 0:00:13]} e5 {[%emt 0:00:03]} 7. Ndb5 {[%emt 0:00:30]} (7. Nb3 $11) 7... a6 $15 {[%emt 0:00:06]} 8. Na3 {[%emt 0:00:01]} b5 {[%emt 0:00:07] [#] Repels Nc4. ...b4 would now be deadly.} 9. Nd5 {[%emt 0:00:00]} Nxd5 {[%emt 0:00:09] Black has an edge.} 10. exd5 {[%emt 0:00:06]} Nd4 {[%emt 0:00:30]} 11. c3 {[%emt 0:00:05]} Nf5 {[%emt 0:00:07]} 12. Bd3 {[%emt 0:00:13]} Qh4+ {[%emt 0:00:06]} (12... g6 {simplifies} 13. Nc2 Bd7 14. Bxf5 Bxf5 15. a4 Bd7) 13. Ke2 {[%emt 0:00:13]} Be7 {[%emt 0:00:11]} 14. g3 {[%emt 0:00:01]} Qh3 {[%emt 0:00:08]} 15. Qf1 {[%emt 0:00:08] Prevents Qg2+.} Qxf1+ {[%emt 0:00:09]} 16. Rxf1 {[%emt 0:00:01]} h5 {[%emt 0:00:02]} 17. Nc2 {[%emt 0:00:15]} Bd7 {[%emt 0:00:03]} 18. Ne3 {[%emt 0:01:49]} Nxe3 {[%emt 0:00:08]} 19. Bxe3 {[%emt 0:00:00]} f5 {[%emt 0:00:01]} 20. a4 {[%emt 0:00:00]} bxa4 {[%emt 0:00:03]} 21. h4 {[%emt 0:00:06]} Rb8 {[%emt 0:00:02]} 22. Bxa6 $2 {[%emt 0:00:00] Now White is beyond hope.} ({Better is} 22. Ra2 $15) 22... Rxb2+ $19 {[%emt 0:00:02]} 23. Kd3 {[%emt 0:00:00]} Kf7 {[%emt 0:00:15]} 24. Rfb1 $2 {[%emt 0:00:00]} (24. Rf2 Rhb8 25. Ra2) 24... Rhb8 {[%emt 0:00:04]} 25. Rxb2 {[%emt 0:00:00]} Rxb2 {[%emt 0:00:01]} 26. c4 $2 {[%emt 0:00:00]} (26. Bd2) 26... Bf6 {[%emt 0:00:06][%cal Oe5e4] ...e4+! is the strong threat.} 27. Bb5 {[%emt 0:00:00]} e4+ {[%emt 0:00:06]} 28. fxe4 {[%emt 0:00:00]} fxe4+ {[%emt 0:00:01]} 29. Kxe4 {[%emt 0:00:00]} Rxb5 {[%emt 0:00:02]} 30. Rxa4 {[%emt 0:00:00]} Rb7 {[%emt 0:00:06]} 31. Ra6 {[%emt 0:00:00]} Be7 {[%emt 0:00:11]} 32. Bg5 {[%emt 0:00:00]} Bxg5 {[%emt 0:00:03] Black is clearly winning.} 33. hxg5 {[%emt 0:00:01][%mdl 4096] Endgame. KRB-KR} Ke7 {[%emt 0:00:03]} 34. g6 {[%emt 0:00:14]} Rb3 {[%emt 0:00:04]} 35. Kf4 {[%emt 0:00:02]} Rb4 {[%emt 0:00:02]} 36. Kg5 {[%emt 0:00:03]} Rxc4 {[%emt 0:00:02]} 37. Kxh5 {[%emt 0:00:00]} Rc5 {[%emt 0:00:08]} 38. Kg5 {[%emt 0:00:07]} Rxd5+ {[%emt 0:01:02]} 39. Kf4 Rf5+ {[%emt 0:00:00]} 40. Ke4 {[%emt 0:00:02]} Rf6 {[%emt 0:00:00] [#] ( -> ...d5+)} 41. Ra7 {[%emt 0:00:05]} Rxg6 {[%emt 0:00:00]} 42. Kf4 {[%emt 0:00:01]} Rf6+ {[%emt 0:00:00]} 43. Ke3 {[%emt 0:00:01]} Ke6 {[%emt 0:00:00]} 44. g4 {[%emt 0:00:01]} Bc6 {[%emt 0:00:00] Weighted Error Value: White=0.93/Black=0.40.  Loses game:     	White=1     	---        Mistake:       	White=3     	---        Inaccurate:     	White=4     	Black=3      OK:         	White=6     	Black=12     Best:        	White=2     	Black=2} 0-1

[Event "Austria Championship Blitz 2024"]
[Site "Innsbruck"]
[Date "2024.06.01"]
[Round "1.3"]
[White "Horvath, Dominik"]
[Black "Walder, Elias"]
[Result "0-1"]
[ECO "C11"]
[WhiteElo "2554"]
[BlackElo "2035"]
[Annotator "TA"]
[PlyCount "72"]
[EventDate "2024.06.01"]
[EventType "swiss"]
[EventCountry "AUT"]
[SourceTitle "playchess.com"]
[Source "ChessBase"]
[SourceQuality "1"]
[TimeControl "180+2"]

{[%evp 13,72,-3,0,0,-18,5,45,0,55,47,71,68,58,52,230,90,98,102,183,109,110,93,89,82,99,93,89,25,22,0,60,60,77,68,75,-152,-152,-222,-207,-184,0,-102,-79,-74,-1,-11,-17,-630,-634,-540,-385,-385,-393,-1413,-1399,-1397,-1397,-29979,-29980,-29976,-1376]} 1. e4 {[%emt 0:00:00][%cal Be2e4,Be4e5][%mdl 32]} e6 {[%emt 0:00:00]} 2. d4 {[%emt 0:00:01]} d5 3. Nc3 Nf6 {[%emt 0:00:02]} 4. e5 {[%emt 0:00:01]} Nfd7 {[%emt 0:00:01]} 5. Nce2 {[%emt 0:00:01]} c5 {[%emt 0:03:09]} 6. c3 Nc6 7. Nf3 Be7 {[%emt 0:00:00]} 8. h4 {[%emt 0:00:02]} cxd4 {[%emt 0:00:00]} 9. cxd4 {[%emt 0:00:00]} a6 {[%emt 0:00:00]} 10. h5 {[%emt 0:00:02] White is slightly better.} h6 {[%emt 0:00:00]} (10... f6 $11) 11. a3 $14 {[%emt 0:00:09]} Nb6 {[%emt 0:00:00]} 12. Rh3 {[%emt 0:00:05]} Bd7 {[%emt 0:00:00]} 13. Rg3 {[%emt 0:00:01]} Rg8 $2 {[%emt 0:00:00]} ({Better is} 13... Bf8 $14) 14. Nf4 {[%emt 0:00:01]} (14. Bxh6 $18 {has better winning chances.} Bf8 15. Bg5) 14... Qc7 {[%emt 0:00:00]} 15. Bd3 {[%emt 0:00:06]} O-O-O {[%emt 0:00:00] [#]} (15... Kf8 $16 {was worth a try.} 16. Kf1 Rh8) 16. Kf1 {[%emt 0:00:07]} (16. Bh7 $1 $18) 16... Bg5 {[%emt 0:00:00]} 17. Be3 {[%emt 0:00:25]} f6 {[%emt 0:00:00]} 18. Rc1 {[%emt 0:00:05] Dodges Nc4. Black must now prevent b4.} Kb8 {[%emt 0:00:00]} 19. b4 {[%emt 0:00:09]} Rc8 {[%emt 0:00:00]} 20. Bd2 {[%emt 0:00:50]} (20. b5 $16 axb5 21. Bxb5) 20... Qd8 $11 {[%emt 0:00:00]} 21. Ne2 {[%emt 0:00:02]} Bxd2 {[%emt 0:00:00]} ({Black should play} 21... Qe8 $11) 22. Qxd2 $14 {[%emt 0:00:01]} fxe5 23. dxe5 {[%emt 0:00:01]} Qe7 {[%emt 0:00:00]} 24. Ned4 $2 {[%emt 0:00:07]} (24. Kg1 $16 {keeps the pressure on.}) 24... Nxd4 $17 {[%emt 0:00:00]} 25. Rxc8+ {[%emt 0:00:02]} (25. Nxd4 $17 Qh4 26. Rxc8+ Rxc8 27. Nf3 Qh1+ 28. Ke2) 25... Rxc8 $19 {[%emt 0:00:00]} 26. Nxd4 {[%emt 0:00:01] [#]} Nc4 $2 {[%emt 0:00:00]} (26... Qh4 $1 $19 {[%cal Rh4d4]} 27. Nf3 Qxh5) 27. Qf4 {[%emt 0:00:06]} (27. Bxc4 $1 $11 {was the only way to keep the balance.} Rxc4 28. Kg1) 27... Nxa3 {[%emt 0:00:00][%cal Oa3c4]} 28. Bxa6 {[%emt 0:00:07]} Nc4 {[%emt 0:00:00]} (28... bxa6 $17 29. Rxa3 Rc4 (29... Qxb4 $2 30. Nc6+ Bxc6 31. Qxb4+ $18)) 29. Bxc4 $11 {[%emt 0:00:28]} Rxc4 {[%emt 0:00:00]} 30. Qd2 {[%emt 0:00:00][%mdl 8192]} (30. b5 $2 Qb4 31. Rb3 (31. Rxg7 $2 Rxd4 32. Qc1 Qc4+ 33. Qxc4 dxc4 $19) 31... Qc5 $19 (31... Qxb3 $2 32. Qf8+ Rc8 33. Qd6+ Ka7 34. Nxb3 $18)) (30. Rb3 $11) 30... Qh4 $1 $19 {[%emt 0:00:00]} ({Not} 30... Rxb4 31. Kg1 $15) 31. Rd3 {[%emt 0:00:14]} Qh1+ {[%emt 0:00:00]} (31... Qxh5 $2 32. f4 $19) 32. Ke2 {[%emt 0:00:01]} Qxh5+ {[%emt 0:00:00]} 33. Nf3 $2 {[%emt 0:00:04]} (33. f3 Qxe5+ 34. Kf2) 33... Bb5 {[%emt 0:00:00] ( -> ...Re4+)} 34. Kd1 {[%emt 0:00:18]} Ba4+ {[%emt 0:00:00] White is weak on the light squares} 35. Ke1 {[%emt 0:00:02]} Qh1+ {[%emt 0:00:00]} 36. Ke2 {[%emt 0:00:01]} Bb5 {[%emt 0:00:00] Weighted Error Value: White=0.93/Black=0.30.  Loses game:     	White=1     	Black=1      Missed win:     	---       	Black=1      Mistake:       	White=7     	Black=4      Inaccurate:     	White=1     	Black=1      OK:         	White=8     	Black=6      Best:        	White=1     	Black=3      Strong:       	---       	Black=1} (36... Re4+ $142 37. Qe3 Bb5 (37... Rxe3+ $2 38. Kxe3 Bb5 39. Rc3 $19) 38. Ne1 Rxe3+ 39. fxe3 Bxd3+ 40. Nxd3 Qxg2+ 41. Kd1 h5 42. Ke1 h4 43. Nf4 Qf3 44. Kd2 d4 45. Kd3 Qxe3+ (45... dxe3 {leads to mate.} 46. Ne2 h3 47. Nd4 Qd5 48. Kc3 h2 49. Nc2 h1=Q 50. Kb2 Qhd1 51. b5 Qxb5+ 52. Ka3 Qc1+ 53. Ka2 Qd5#) 46. Kc2 Qxf4 47. Kd3 h3 (47... Qxe5 {is a self mate.} 48. Kc2 h3 49. Kd3 h2 50. Kc2 Qe2+ 51. Kb3 h1=Q 52. b5 Qb1+ 53. Ka4 Qea2#) 48. Kc2 h2 (48... Qxe5 49. Kd3 h2 50. Kc4 h1=Q 51. Kb3 Qed5+ 52. Kb2 Qh2+ 53. Kc1 Qdh1#) 49. b5 h1=Q (49... h1=R 50. b6 Qe3 51. Kb2 Rh2+ 52. Kb1 Qg1#) 50. b6 d3+ (50... Qxe5 51. Kb3 Qb5+ 52. Kc2 Qh2+ 53. Kd1 Qf1#) 51. Kxd3 Qd1+ 52. Kc3 Qfd4#) 0-1

[Event "Austria Championship Blitz 2024"]
[Site "Innsbruck"]
[Date "2024.06.01"]
[Round "1.4"]
[White "Schwarz, Benedikt"]
[Black "Schwabeneder, Florian"]
[Result "0-1"]
[ECO "D00"]
[WhiteElo "1919"]
[BlackElo "2405"]
[Annotator "RC"]
[PlyCount "66"]
[EventDate "2024.06.01"]
[EventType "swiss"]
[EventCountry "AUT"]
[SourceTitle "playchess.com"]
[Source "ChessBase"]
[SourceQuality "1"]
[TimeControl "180+2"]

1. d4 {[%emt 0:00:02]} Nf6 {[%emt 0:00:01]} 2. Bf4 {[%emt 0:00:02]} c5 {[%emt 0:00:04]} 3. e3 {[%emt 0:00:01]} d5 {[%emt 0:00:02]} 4. c3 {[%emt 0:00:01]} e6 {[%emt 0:00:08]} 5. Nd2 {[%emt 0:00:03]} Bd6 {[%emt 0:00:02]} 6. Bg3 {[%emt 0:00:01]} O-O {[%emt 0:00:04]} 7. Ngf3 {[%emt 0:00:02]} Qc7 {[%emt 0:00:04]} 8. Ne5 {[%emt 0:00:38]} b6 {[%emt 0:00:13]} 9. Bd3 {[%emt 0:00:05]} Ba6 {[%emt 0:00:04]} 10. Bxa6 {[%emt 0:00:13]} Nxa6 {[%emt 0:00:02]} 11. Qe2 {[%emt 0:00:09]} Nb8 {[%emt 0:00:02]} 12. f4 {[%emt 0:00:10]} Nc6 {[%emt 0:00:04]} 13. Bh4 {[%emt 0:00:06]} Ne8 {[%emt 0:00:09]} 14. O-O {[%emt 0:00:16]} Be7 {[%emt 0:00:30]} 15. Bxe7 {[%emt 0:00:28]} Nxe7 {[%emt 0:00:02]} 16. Rac1 {[%emt 0:00:23]} Qb7 {[%emt 0:00:13]} 17. e4 {[%emt 0:00:04]} cxd4 {[%emt 0:00:11]} 18. cxd4 {[%emt 0:00:05]} Nd6 {[%emt 0:00:07]} 19. exd5 {[%emt 0:00:08]} Qxd5 {[%emt 0:00:08]} 20. Ndf3 {[%emt 0:00:19]} Rac8 {[%emt 0:00:03]} 21. Qd2 {[%emt 0:00:03]} Nef5 {[%emt 0:00:14]} 22. Rxc8 {[%emt 0:00:05]} Rxc8 {[%emt 0:00:02]} 23. Rc1 {[%emt 0:00:04]} f6 {[%emt 0:00:53]} 24. Rxc8+ Nxc8 {[%emt 0:00:01]} 25. Qc3 {[%emt 0:00:11]} Ncd6 {[%emt 0:00:02]} 26. Nd3 {[%emt 0:00:10]} Qxa2 {[%emt 0:00:07]} 27. Qc7 {[%emt 0:00:02]} h6 {[%emt 0:00:10]} 28. Qd8+ {[%emt 0:00:01]} Kh7 {[%emt 0:00:01]} 29. Qc7 {[%emt 0:00:04]} Qb1+ {[%emt 0:00:02]} 30. Kf2 {[%emt 0:00:01]} Qxd3 {[%emt 0:00:02]} 31. g4 {[%emt 0:00:03]} Ne4+ {[%emt 0:00:05]} 32. Kg2 {[%emt 0:00:02]} Qe2+ {[%emt 0:00:02]} 33. Kh3 {[%emt 0:00:06]} Qxf3# {[%emt 0:00:14]} 0-1

[Event "Austria Championship Blitz 2024"]
[Site "Innsbruck"]
[Date "2024.06.01"]
[Round "1.5"]
[White "Wohlfahrt, Herbert"]
[Black "Gutmann, Alois"]
[Result "1-0"]
[ECO "A84"]
[WhiteElo "2328"]
[BlackElo "1985"]
[Annotator "RC"]
[PlyCount "77"]
[EventDate "2024.06.01"]
[EventType "swiss"]
[EventCountry "AUT"]
[SourceTitle "playchess.com"]
[Source "ChessBase"]
[SourceQuality "1"]
[TimeControl "180+2"]

1. Nf3 {[%emt 0:00:01]} e6 {[%emt 0:00:01]} 2. c4 {[%emt 0:00:01]} f5 {[%emt 0:00:02]} 3. g3 {[%emt 0:00:01]} b6 {[%emt 0:00:01]} 4. Bg2 {[%emt 0:00:01]} Bb7 {[%emt 0:00:01]} 5. d4 {[%emt 0:00:02]} Nf6 {[%emt 0:00:09]} 6. O-O {[%emt 0:00:02]} Be7 {[%emt 0:00:01]} 7. Nc3 {[%emt 0:00:02]} Ne4 {[%emt 0:00:01]} 8. d5 {[%emt 0:00:08]} Nxc3 {[%emt 0:00:11]} 9. bxc3 {[%emt 0:00:02]} Bf6 {[%emt 0:00:42]} 10. Nd4 {[%emt 0:00:09]} e5 {[%emt 0:00:15]} 11. Nxf5 {[%emt 0:00:05]} O-O {[%emt 0:00:06]} 12. e4 {[%emt 0:00:04]} Na6 {[%emt 0:00:13]} 13. Be3 {[%emt 0:00:10]} d6 {[%emt 0:00:06]} 14. Qc2 {[%emt 0:00:13]} Nc5 {[%emt 0:00:02]} 15. Bd2 {[%emt 0:00:18]} Ba6 {[%emt 0:00:01]} 16. Ne3 {[%emt 0:00:01]} Qe8 {[%emt 0:00:02]} 17. a4 {[%emt 0:00:15]} Qh5 {[%emt 0:00:11]} 18. a5 {[%emt 0:00:09]} Bg5 {[%emt 0:00:20]} 19. axb6 {[%emt 0:00:18]} axb6 {[%emt 0:00:01]} 20. Nf5 {[%emt 0:00:27]} Bxc4 {[%emt 0:00:07]} 21. Rxa8 {[%emt 0:00:01]} Rxa8 {[%emt 0:00:02]} 22. Bxg5 {[%emt 0:00:09]} Qxg5 {[%emt 0:00:01]} 23. h4 {[%emt 0:00:26]} Qf6 {[%emt 0:00:12]} 24. Re1 {[%emt 0:00:11]} Ra2 {[%emt 0:00:01]} 25. Qd1 {[%emt 0:00:08]} g6 {[%emt 0:00:09]} 26. Qg4 {[%emt 0:00:02]} Kh8 {[%emt 0:00:14]} 27. h5 {[%emt 0:00:08]} gxf5 28. exf5 {[%emt 0:00:01]} Nd3 {[%emt 0:00:19]} 29. Rf1 {[%emt 0:00:03]} b5 {[%emt 0:00:08]} 30. Be4 {[%emt 0:00:05]} Nc5 {[%emt 0:00:02]} 31. Bb1 {[%emt 0:00:01]} Rb2 {[%emt 0:00:04]} 32. Rd1 {[%emt 0:00:04]} e4 {[%emt 0:00:03]} 33. h6 {[%emt 0:00:02]} Bd3 {[%emt 0:00:12]} 34. Bxd3 {[%emt 0:00:03]} exd3 {[%emt 0:00:01]} 35. Re1 {[%emt 0:00:04]} Re2 {[%emt 0:00:05]} 36. Rxe2 dxe2 {[%emt 0:00:00]} 37. Qxe2 {[%emt 0:00:03]} Qe5 {[%emt 0:00:06]} 38. Qg4 {[%emt 0:00:01]} Qe7 {[%emt 0:00:06]} 39. Qb4 {[%emt 0:00:19]} 1-0

[Event "Austria Championship Blitz 2024"]
[Site "Innsbruck"]
[Date "2024.06.01"]
[Round "1.6"]
[White "Tumanyan, Gor"]
[Black "Platzgummer, Fabian"]
[Result "0-1"]
[ECO "B28"]
[WhiteElo "1992"]
[BlackElo "2311"]
[Annotator "RC"]
[PlyCount "78"]
[EventDate "2024.06.01"]
[EventType "swiss"]
[EventCountry "AUT"]
[SourceTitle "playchess.com"]
[Source "ChessBase"]
[SourceQuality "1"]
[TimeControl "180+2"]

1. e4 {[%emt 0:00:02]} c5 {[%emt 0:00:01]} 2. Nf3 {[%emt 0:00:01]} a6 {[%emt 0:00:00]} 3. d4 {[%emt 0:00:02]} cxd4 {[%emt 0:00:02]} 4. Nxd4 {[%emt 0:00:01]} Nf6 {[%emt 0:00:01]} 5. Nc3 {[%emt 0:00:03]} e5 {[%emt 0:00:04]} 6. Nf3 {[%emt 0:00:13]} Bb4 {[%emt 0:00:14]} 7. Bd2 {[%emt 0:00:39]} Nc6 {[%emt 0:00:02]} 8. Bd3 {[%emt 0:00:13]} O-O {[%emt 0:00:21]} 9. O-O {[%emt 0:00:02]} h6 {[%emt 0:00:05]} 10. Re1 {[%emt 0:00:08]} Re8 {[%emt 0:00:01]} 11. Nd5 {[%emt 0:00:24]} Bc5 {[%emt 0:00:26]} 12. Ne3 {[%emt 0:00:43]} d6 {[%emt 0:00:06]} 13. c3 {[%emt 0:00:07]} Be6 {[%emt 0:00:13]} 14. Qc2 {[%emt 0:00:06]} Rc8 {[%emt 0:00:03]} 15. Nf5 {[%emt 0:00:29]} Bxf5 {[%emt 0:00:12]} 16. exf5 {[%emt 0:00:02]} d5 {[%emt 0:00:18]} 17. Bf1 {[%emt 0:00:02]} Ng4 {[%emt 0:00:09]} 18. Be3 {[%emt 0:00:04]} Nxe3 {[%emt 0:00:13]} 19. fxe3 {[%emt 0:00:02]} e4 {[%emt 0:00:08]} 20. Nd4 {[%emt 0:00:01]} Nxd4 {[%emt 0:00:08]} 21. cxd4 {[%emt 0:00:06]} Bxd4 {[%emt 0:00:04]} 22. Qf2 {[%emt 0:00:02]} Be5 {[%emt 0:00:04]} 23. Red1 {[%emt 0:00:03]} Qa5 {[%emt 0:00:09]} 24. Rac1 {[%emt 0:00:06]} Rxc1 {[%emt 0:00:06]} 25. Rxc1 {[%emt 0:00:01]} Qxa2 {[%emt 0:00:04]} 26. Rc2 {[%emt 0:00:01]} Qa4 {[%emt 0:00:09]} 27. Rd2 {[%emt 0:00:02]} Rd8 {[%emt 0:00:01]} 28. g3 {[%emt 0:00:03]} d4 {[%emt 0:00:03]} 29. Qg2 {[%emt 0:00:06]} d3 {[%emt 0:00:04]} 30. Qh3 {[%emt 0:00:02]} Qb4 {[%emt 0:00:04]} 31. Qg2 {[%emt 0:00:01]} Rc8 {[%emt 0:00:04]} 32. Qf2 {[%emt 0:00:01]} Rc1 {[%emt 0:00:02]} 33. Kg2 {[%emt 0:00:01]} Qc5 {[%emt 0:00:07]} 34. Kh3 {[%emt 0:00:02]} Bf6 {[%emt 0:00:01]} 35. Bg2 {[%emt 0:00:02]} Qe5 {[%emt 0:00:05]} 36. Bf1 {[%emt 0:00:05]} Bg5 {[%emt 0:00:02]} 37. Bg2 {[%emt 0:00:02]} a5 {[%emt 0:00:02]} 38. Bf1 {[%emt 0:00:01]} Qc5 {[%emt 0:00:02]} 39. Bg2 {[%emt 0:00:04]} Bxe3 {[%emt 0:00:02]} 0-1

[Event "Austria Championship Blitz 2024"]
[Site "Innsbruck"]
[Date "2024.06.01"]
[Round "1.8"]
[White "Leonov, Leonid"]
[Black "Kilgus, Georg"]
[Result "0-1"]
[ECO "C55"]
[WhiteElo "1739"]
[BlackElo "2362"]
[Annotator "RC"]
[PlyCount "56"]
[EventDate "2024.06.01"]
[EventType "swiss"]
[EventCountry "AUT"]
[SourceTitle "playchess.com"]
[Source "ChessBase"]
[SourceQuality "1"]
[TimeControl "180+2"]

1. e4 {[%emt 0:00:01]} e5 {[%emt 0:00:01]} 2. Nf3 {[%emt 0:00:01]} Nc6 {[%emt 0:00:01]} 3. Bc4 {[%emt 0:00:01]} Nf6 {[%emt 0:00:01]} 4. d3 {[%emt 0:00:00]} h6 {[%emt 0:00:03]} 5. O-O {[%emt 0:00:02]} a6 {[%emt 0:00:01]} 6. Re1 {[%emt 0:00:10]} d6 {[%emt 0:00:31]} 7. a4 {[%emt 0:00:10]} g6 {[%emt 0:00:05]} 8. h3 {[%emt 0:00:17]} Bg7 {[%emt 0:00:01]} 9. c3 {[%emt 0:00:02]} O-O {[%emt 0:00:01]} 10. Nbd2 {[%emt 0:00:02]} Na5 {[%emt 0:00:25]} 11. Ba2 {[%emt 0:00:03]} c5 {[%emt 0:00:01]} 12. d4 {[%emt 0:00:22]} exd4 {[%emt 0:00:09]} 13. cxd4 {[%emt 0:00:01]} cxd4 {[%emt 0:00:21]} 14. Nxd4 {[%emt 0:00:04]} Bd7 {[%emt 0:00:00]} 15. b4 {[%emt 0:00:09]} Nc6 {[%emt 0:00:01]} 16. Nc2 {[%emt 0:00:13]} Nh5 {[%emt 0:00:08]} 17. Rb1 {[%emt 0:00:08]} Ne5 {[%emt 0:00:09]} 18. Qe2 {[%emt 0:00:58]} Nf4 {[%emt 0:00:07]} 19. Qe3 {[%emt 0:00:10]} Qg5 {[%emt 0:00:16]} 20. Qg3 {[%emt 0:00:11]} Qxg3 {[%emt 0:00:08]} 21. fxg3 {[%emt 0:00:02]} Nfd3 {[%emt 0:00:01]} 22. Re3 {[%emt 0:00:09]} Rac8 {[%emt 0:00:01]} 23. Bb3 {[%emt 0:00:10]} Rc7 {[%emt 0:00:23]} 24. Ba3 {[%emt 0:00:04]} Rfc8 {[%emt 0:00:01]} 25. Nd4 {[%emt 0:00:06]} Nc1 {[%emt 0:00:24]} 26. Bxc1 {[%emt 0:00:11]} Rxc1+ {[%emt 0:00:01]} 27. Rxc1 {[%emt 0:00:00]} Rxc1+ {[%emt 0:00:01]} 28. Kh2 {[%emt 0:00:01]} Ng4+ {[%emt 0:00:11]} 0-1

[Event "Austria Championship Blitz 2024"]
[Site "Innsbruck"]
[Date "2024.06.01"]
[Round "1.9"]
[White "Kruckenhauser, Arthur"]
[Black "Frolik, Michael"]
[Result "1-0"]
[ECO "B90"]
[WhiteElo "2340"]
[BlackElo "1984"]
[Annotator "RC"]
[PlyCount "56"]
[EventDate "2024.06.01"]
[EventType "swiss"]
[EventCountry "AUT"]
[SourceTitle "playchess.com"]
[Source "ChessBase"]
[SourceQuality "1"]
[TimeControl "180+2"]

1. e4 {[%emt 0:00:02]} c5 {[%emt 0:00:01]} 2. Nf3 {[%emt 0:00:01]} d6 {[%emt 0:00:00]} 3. d4 {[%emt 0:00:02]} cxd4 {[%emt 0:00:01]} 4. Nxd4 {[%emt 0:00:01]} Nf6 {[%emt 0:00:03]} 5. Nc3 {[%emt 0:00:01]} a6 {[%emt 0:00:00]} 6. Qf3 {[%emt 0:00:01]} e5 {[%emt 0:00:02]} 7. Nf5 {[%emt 0:00:02]} Be6 {[%emt 0:00:01]} 8. Bg5 {[%emt 0:00:11]} Nbd7 {[%emt 0:00:05]} 9. Bd3 {[%emt 0:00:21]} h6 {[%emt 0:00:01]} 10. Bh4 {[%emt 0:00:04]} g5 {[%emt 0:00:17]} 11. Bg3 {[%emt 0:00:01]} Qc7 {[%emt 0:00:16]} 12. a4 {[%emt 0:00:14]} h5 {[%emt 0:00:28]} 13. h4 {[%emt 0:00:05]} g4 {[%emt 0:00:02]} 14. Qe2 {[%emt 0:00:06]} Bxf5 15. exf5 {[%emt 0:00:02]} Rc8 {[%emt 0:00:33]} 16. O-O {[%emt 0:00:07]} Bg7 {[%emt 0:00:27]} 17. Rfe1 {[%emt 0:00:10]} O-O {[%emt 0:00:06]} 18. Rad1 {[%emt 0:00:09]} Rfe8 {[%emt 0:00:01]} 19. Ne4 {[%emt 0:00:07]} Nxe4 {[%emt 0:00:06]} 20. Bxe4 {[%emt 0:00:02]} Nf6 {[%emt 0:00:02]} 21. c3 {[%emt 0:00:05]} a5 {[%emt 0:00:18]} 22. Qb5 {[%emt 0:00:05]} b6 {[%emt 0:00:03]} 23. Bd5 {[%emt 0:00:11]} Red8 {[%emt 0:00:04]} 24. Bb3 {[%emt 0:00:07]} Bf8 {[%emt 0:00:24]} 25. Qe2 {[%emt 0:00:23]} Qc5 {[%emt 0:00:08]} 26. Rd3 {[%emt 0:00:14]} b5 {[%emt 0:00:12]} 27. Red1 {[%emt 0:00:14]} bxa4 {[%emt 0:00:12]} 28. Bxa4 {[%emt 0:00:02]} Be7 {[%emt 0:00:00]} 1-0